bitfinex-derivatives/quotes_ETHF0:USTF0_20250520
["timestamp","ask_amount","ask_price","bid_price","bid_amount"]
[1747741951623,0.7953,2513.8,2513.7,0.48891731]
[1747741951923,0.79537,2513.6,2513.5,1.0105]
[1747741952123,4.00317,2513.6,2513.5,1.0105]
[1747741952316,4.00317,2513.6,2513.5,2.99972]
[1747741953229,4.00317,2513.6,2513.5,4.34142]
[1747741953728,4.00317,2513.6,2513.5,5.13682]
[1747741953917,4.00317,2513.6,2513.5,4.34142]
[1747741954121,4.00317,2513.6,2513.5,5.13682]
[1747741954719,0.79537,2513.6,2513.5,5.13682]
[1747741958434,0.79536,2513.7,2513.6,0.79533]
[1747741958836,0.79536,2513.7,2513.6,2.78447]
[1747741959037,0.79533,2513.7,2513.6,2.78447]
[1747741960638,3.2078,2513.9,2513.6,3.97753]
[1747741960937,3.2078,2513.9,2513.8,0.7953]
[1747741961437,3.2078,2513.9,2513.8,5.19718]
[1747741961933,2.73060257,2513.9,2513.8,10.19718]
[1747741962525,2.73060257,2513.9,2513.8,5.48101783]
[1747741963136,2.73060257,2513.9,2513.8,6.28806665]
[1747741963335,5.51485258,2513.9,2513.8,2.12228665]
[1747741963541,5.51485258,2513.9,2513.8,1.09088665]
[1747741964334,5.51485258,2513.9,2513.8,1.09103724]
[1747741964936,5.51485258,2513.9,2513.8,0.60211993]
[1747741966239,5.51485258,2513.9,2513.8,0.60215571]
[1747741966732,3.52587257,2513.9,2513.8,1.39745571]
[1747741967038,3.52587257,2513.9,2513.8,3.38643571]
[1747741967747,3.52587257,2513.9,2513.8,3.38638944]
[1747741969346,3.52587257,2513.9,2513.8,3.38639853]
[1747741969747,3.52587257,2513.9,2513.8,2.59109853]
[1747741970746,3.52587257,2513.9,2513.8,10.72709853]
[1747741971349,3.52587257,2513.9,2513.8,10.72713813]
[1747741972642,3.52587257,2513.9,2513.8,8.73815813]
[1747741972846,3.52587257,2513.9,2513.8,10.07829025]
[1747741973150,3.52587257,2513.9,2513.8,10.87359025]
[1747741973347,3.52587257,2513.9,2513.8,10.07829025]
[1747741973848,5.51485258,2513.9,2513.8,10.87359025]
[1747741974646,5.51485258,2513.9,2513.8,10.87358064]
[1747741976053,3.52587257,2513.9,2513.8,12.86256064]
[1747741976257,3.52587257,2513.9,2513.8,12.86257736]
[1747741976448,3.52587257,2513.9,2513.8,12.06727736]
[1747741976851,3.52587257,2513.9,2513.8,10.07829736]
[1747741977154,3.52587257,2513.9,2513.8,10.87359736]
[1747741977455,0.79527,2513.9,2513.8,10.87359736]
[1747741977753,0.79527,2513.9,2513.8,12.86257736]
[1747741977952,0.79527,2513.9,2513.8,12.06716057]
[1747741978155,5.99205001,2513.9,2513.8,0.60208057]
[1747741978356,8.00805001,2513.9,2513.8,0.60208057]
[1747741978557,8.09291478,2513.9,2513.8,0.60208057]
[1747741979654,8.00805001,2513.9,2513.8,0.60217365]
[1747741980048,8.00805001,2513.9,2513.8,0.84705885]
[1747741982949,8.00805001,2513.9,2513.8,0.56301671]
[1747741983155,8.00805001,2513.9,2513.8,0.84725367]
[1747741985558,9.36545001,2513.9,2513.8,0.84725367]
[1747741986351,9.36545001,2513.9,2513.8,0.84733455]
[1747741987653,9.36545001,2513.9,2513.8,1.57464935]
[1747741988062,6.02422253,2513.9,2513.8,3.56370673]
[1747741988259,6.02422253,2513.9,2513.8,4.94400673]
[1747741988458,6.02422253,2513.9,2513.8,4.94401875]
[1747741988854,6.02422253,2513.9,2513.8,3.89046875]
[1747741989051,8.01320254,2513.9,2513.8,0.92928875]
[1747741989954,8.01320254,2513.9,2513.8,0.92931012]
[1747741990160,6.02422253,2513.9,2513.8,2.30961012]
[1747741990857,6.02422253,2513.9,2513.8,1.98286012]
[1747741991060,6.02422253,2513.9,2513.8,1.98282952]
[1747741991461,5.36047,2513.9,2513.8,1.69843151]
[1747741991666,5.36047,2513.9,2513.8,1.98284318]
[1747741992167,0.79527,2513.9,2513.8,4.76712318]
[1747741992666,0.79527,2513.9,2513.8,5.09387318]
[1747741993160,0.79527,2513.9,2513.8,4.80946151]
[1747741993360,0.3180501,2513.9,2513.8,5.093852]
[1747741993563,0.99414877,2514.0,2513.9,0.79527]
[1747741993766,0.99414877,2514.0,2513.9,2.47136049]
[1747741993963,0.99414877,2514.0,2513.9,5.46606049]
[1747741994467,0.27626042,2514.0,2513.9,5.46594293]
[1747741995066,0.27626042,2514.0,2513.9,5.46596562]
[1747741995771,1.07150042,2514.0,2513.9,5.46596562]
[1747741996469,1.07150042,2514.0,2513.9,5.78404005]
[1747741997061,0.27626042,2514.0,2513.9,5.78404005]
[1747741997666,0.79522,2514.1,2514.0,0.79524]
[1747741997870,0.79522,2514.1,2514.0,3.37107854]
[1747741998062,0.79522,2514.1,2514.0,5.35990353]
[1747741998469,0.79522,2514.1,2514.0,5.35983886]
[1747741999172,3.2078,2514.2,2514.1,0.79521]
[1747741999372,3.2078,2514.2,2514.1,10.45388387]
[1747741999572,3.2078,2514.2,2514.1,12.44262887]
[1747741999868,4.99702877,2514.5,2514.4,0.79511]
[1747742000073,4.99702877,2514.5,2514.4,1.07912369]
[1747742000365,4.99702877,2514.5,2514.4,3.06762869]
[1747742000670,4.99702877,2514.5,2514.4,1.07912369]
[1747742000867,4.99702877,2514.5,2514.4,2.45052369]
[1747742001269,4.99702877,2514.5,2514.4,4.43902869]
[1747742001768,4.99702877,2514.5,2514.4,4.43884741]
[1747742002472,4.99702877,2514.5,2514.4,4.75697892]
[1747742003370,4.99702877,2514.5,2514.4,4.75680399]
[1747742003573,4.00288,2514.5,2514.4,4.75680399]
[1747742003974,0.79508,2514.5,2514.4,4.75680399]
[1747742004768,0.79508,2514.5,2514.4,5.08306162]
[1747742005079,0.79508,2514.5,2514.4,5.08293364]
[1747742006074,0.79508,2514.5,2514.4,3.09442864]
[1747742006281,0.79508,2514.5,2514.4,5.08293364]
[1747742007575,0.80103967,2514.6,2514.5,0.79508]
[1747742007778,0.80103967,2514.6,2514.5,11.6127095]
[1747742007977,0.80103967,2514.6,2514.5,13.6011345]
[1747742008378,0.00596967,2514.6,2514.5,13.6011345]
[1747742008585,4.0028,2514.8,2514.7,0.79502]
[1747742008770,4.0028,2514.8,2514.7,1.07823155]
[1747742008977,4.0028,2514.8,2514.7,3.06650155]
[1747742009175,4.0028,2514.8,2514.7,4.08140155]
[1747742009671,4.0028,2514.8,2514.7,4.72579069]
[1747742010179,4.0028,2514.8,2514.7,4.72569519]
[1747742010374,4.0028,2514.8,2514.7,4.72569453]
[1747742010573,4.0028,2514.8,2514.7,4.72569375]
[1747742010882,4.0028,2514.8,2514.7,4.44257914]
[1747742011179,0.795,2514.8,2514.7,4.36032656]
[1747742011980,0.795,2514.8,2514.7,4.64352959]
[1747742012177,0.795,2514.8,2514.7,4.64356452]
[1747742012685,0.795,2514.8,2514.7,4.36032656]
[1747742013481,0.795,2514.8,2514.7,4.64362908]
[1747742013680,0.795,2514.8,2514.7,3.62872908]
[1747742013877,4.74017,2514.8,2514.7,0.84543908]
[1747742014876,4.74017,2514.8,2514.7,0.84542126]
[1747742015077,4.82503477,2514.8,2514.7,0.60141621]
[1747742017985,4.82503477,2514.8,2514.7,1.39643621]
[1747742018380,4.82503477,2514.8,2514.7,1.39619107]
[1747742020081,4.82503477,2514.8,2514.7,1.64019612]
[1747742020483,0.87986477,2514.8,2514.7,3.62846612]
[1747742020680,0.08486477,2514.8,2514.7,5.00856612]
[1747742021581,0.08486477,2514.8,2514.7,5.0908187]
[1747742021889,0.08486477,2514.8,2514.7,5.09094035]
[1747742023585,0.08486477,2514.8,2514.7,5.09109622]
[1747742024489,0.87985477,2514.8,2514.7,4.29607622]
[1747742024792,3.15555477,2514.8,2514.7,11.80899622]
[1747742024991,3.15555477,2514.8,2514.7,9.02570622]
[1747742025292,3.15555477,2514.8,2514.7,11.01401846]
[1747742025490,3.15555477,2514.8,2514.7,9.02574846]
[1747742025887,3.15555477,2514.8,2514.7,0.92774846]
[1747742026087,5.14382477,2514.8,2514.7,9.02574846]
[1747742026395,5.14382477,2514.8,2514.7,8.69949083]
[1747742027189,5.14382477,2514.8,2514.7,8.69961159]
[1747742027391,5.14382477,2514.8,2514.7,9.02586922]
[1747742028789,5.14382477,2514.8,2514.7,9.02605618]
[1747742028996,10.14382477,2514.8,2514.7,0.92805618]
[1747742029189,0.79502,2514.7,2514.6,7.87e-06]
[1747742029389,5.29472,2514.7,2514.6,7.87e-06]
[1747742029588,51.38307,2514.7,2514.6,7.87e-06]
[1747742029885,0.79511,2514.4,2514.3,9.66e-06]
[1747742030083,4.00291,2514.4,2514.3,9.66e-06]
[1747742030289,10.991495,2514.4,2514.3,9.66e-06]
[1747742030688,1.98805,2514.1,2513.7,1.1273914]
[1747742030989,4.0031,2513.8,2513.7,0.3115214]
[1747742031182,0.79546,2513.3,2513.2,48.176]
[1747742031386,0.79546,2513.3,2513.2,8.099]
[1747742031595,2.784915,2513.3,2513.2,8.099]
[1747742031791,4.053415,2513.3,2513.2,8.099]
[1747742032189,0.79552,2513.1,2513.0,2.01146967]
[1747742032596,0.79552,2513.1,2513.0,10.11046967]
[1747742032787,2.06402,2513.1,2513.0,12.10008467]
[1747742033293,2.06402,2513.1,2513.0,0.00596967]
[1747742033491,4.053635,2513.1,2513.0,8.10596967]
[1747742035396,7.261435,2513.1,2513.0,0.00596967]
[1747742036092,12.261435,2513.1,2513.0,0.00596967]
[1747742036489,12.261435,2513.1,2513.0,9.67e-06]
[1747742042692,0.79578,2512.3,2512.2,8.104]
[1747742043208,0.79578,2512.3,2512.2,8.89981]
[1747742043400,3.2078,2512.4,2512.3,0.79578]
[1747742043703,3.2078,2512.4,2512.3,2.13818]
[1747742043905,3.2078,2512.4,2512.3,4.12835]
[1747742044607,4.2289,2513.2,2512.5,1.98925]
[1747742044902,0.79563,2512.8,2512.7,0.79563]
[1747742045096,0.79563,2512.8,2512.7,1.83493]
[1747742045297,0.79563,2512.8,2512.7,3.02915]
[1747742045507,2.78548,2512.8,2512.7,1.0393]
[1747742046002,2.78548,2512.8,2512.7,1.83495]
[1747742046398,2.78548,2512.8,2512.7,1.0393]
[1747742046800,2.78548,2512.8,2512.7,1.83495]
[1747742047197,2.78548,2512.8,2512.7,1.0393]
[1747742047703,2.78548,2512.8,2512.7,1.83495]
[1747742048607,3.2078,2512.9,2512.8,0.79562]
[1747742048902,3.2078,2512.9,2512.8,2.15382]
[1747742049112,4.00341,2512.9,2512.8,4.14359499]
[1747742049294,5.993185,2512.9,2512.8,1.3582]
[1747742049694,5.993185,2512.9,2512.7,1.0393]
[1747742049899,2.11722,2512.8,2512.7,1.0393]
[1747742050300,0.79565,2512.7,2512.6,1.0345]
[1747742050507,2.11725,2512.7,2512.6,1.0345]
[1747742050702,4.10718,2512.7,2512.6,1.0345]
[1747742050898,0.79571,2512.5,2512.4,2.3977]
[1747742051404,2.7858,2512.5,2512.4,1.0395]
[1747742051607,0.79578,2512.3,2512.2,2.2984]
[1747742051903,0.79578,2512.3,2512.2,4.11111]
[1747742052708,2.94311,2512.8,2512.2,7.29508]
[1747742052907,0.79575,2512.5,2512.4,0.79571]
[1747742053405,2.78584,2512.5,2512.4,0.79571]
[1747742054413,0.79575,2512.5,2512.4,2.7858]
[1747742054613,0.79571,2512.6,2512.5,0.79567]
[1747742054811,0.79571,2512.6,2512.5,2.13257]
[1747742055006,0.79571,2512.6,2512.5,12.21157999]
[1747742055207,3.2078,2512.9,2512.5,11.41590999]
[1747742055412,0.79565,2512.8,2512.7,0.79562]
[1747742055712,0.79565,2512.8,2512.7,3.13212]
[1747742056917,4.00342,2512.9,2512.8,0.79562]
[1747742057112,5.99323,2512.9,2512.8,2.13252]
[1747742057318,5.99323,2512.9,2512.8,1.3369]
[1747742057820,5.993195,2512.9,2512.8,1.3369]
[1747742060022,5.197575,2512.9,2512.6,0.9925]
[1747742060322,0.79565,2512.7,2512.6,0.9925]
[1747742060718,4.08688,2512.7,2512.6,0.9925]
[1747742061227,4.08688,2512.7,2512.6,1.31086447]
[1747742063429,2.78558,2512.7,2512.6,1.31086447]
[1747742063726,2.78558,2512.7,2512.6,1.59914205]
[1747742066435,2.78558,2512.7,2512.6,2.85814205]
[1747742068538,2.78558,2512.7,2512.6,2.85876941]
[1747742068837,2.78558,2512.7,2512.6,3.10291024]
[1747742070438,2.78558,2512.7,2512.6,3.10295575]
[1747742071245,2.78558,2512.7,2512.6,1.84395575]
[1747742071933,2.78558,2512.7,2512.6,2.63963575]
[1747742072129,2.78558,2512.7,2512.6,1.84395008]
[1747742072540,1.98993,2512.7,2512.6,1.84395008]
[1747742072736,1.98993,2512.7,2512.6,3.11585008]
[1747742073641,1.98993,2512.7,2512.6,3.11588861]
[1747742073833,1.98993,2512.7,2512.6,3.11588718]
[1747742074739,4.5465,2512.9,2512.6,3.11588718]
[1747742074935,3.32855,2512.9,2512.7,0.28898188]
[1747742075135,3.32855,2512.9,2512.8,0.28898188]
[1747742075335,4.12414,2512.9,2512.8,0.28898188]
[1747742075536,4.12414,2512.9,2512.8,0.28901931]
[1747742076544,4.12414,2512.9,2512.8,0.60738378]
[1747742077342,4.12414,2512.9,2512.8,0.60738366]
[1747742077943,3.32855,2512.9,2512.8,0.60738366]
[1747742078343,6.53635,2512.9,2512.8,0.60738366]
[1747742078743,7.33194,2512.9,2512.8,0.60738366]
[1747742078944,4.12414,2512.9,2512.8,0.60734477]
[1747742079838,4.11937365,2512.9,2512.8,0.60734477]
[1747742080545,4.11937365,2512.9,2512.8,0.60732187]
[1747742081142,7.32717365,2512.9,2512.8,0.60732187]
[1747742082346,7.32717365,2512.9,2512.8,0.60735927]
[1747742083949,8.63948436,2512.9,2512.8,0.60735927]
[1747742084344,18.91248436,2512.9,2512.8,0.60735927]
[1747742084548,18.91248436,2512.9,2512.8,0.2889948]
[1747742085952,0.79568,2512.6,2512.5,0.24542765]
[1747742086149,4.00348,2512.6,2512.5,0.53416326]
[1747742086350,5.99349,2512.6,2512.5,0.53416326]
[1747742087144,5.99349,2512.6,2512.5,0.28873561]
[1747742087349,0.79575,2512.4,2512.3,1.33]
[1747742087559,0.79575,2512.4,2512.3,1.6188536]
[1747742087849,0.79575,2512.4,2512.3,3.6090236]
[1747742088249,0.79575,2512.4,2512.3,1.6188536]
[1747742088947,0.79575,2512.4,2512.3,3.85445125]
[1747742089151,0.79575,2512.4,2512.3,2.18248891]
[1747742089353,1.79275053,2512.4,2512.3,2.18248891]
[1747742090651,1.79275053,2512.4,2512.3,1.93706126]
[1747742090864,1.79275053,2512.4,2512.3,1.93706939]
[1747742092057,0.79575,2512.4,2512.3,1.93706939]
[1747742094257,0.79575,2512.4,2512.3,1.93720524]
[1747742095658,0.79575,2512.4,2512.3,3.92737524]
[1747742096556,0.79575,2512.4,2512.3,4.17274513]
[1747742097556,0.79575,2512.4,2512.3,4.17273656]
[1747742098962,0.79575,2512.4,2512.3,0.85256656]
[1747742099354,0.79575,2512.4,2512.3,0.85249069]
[1747742099960,2.78592001,2512.4,2512.3,0.85249069]
[1747742100561,3.75762001,2512.4,2512.3,0.60706304]
[1747742100862,0.79584,2512.1,2512.0,3.31e-06]
[1747742101059,0.79587,2512.0,2511.9,8.13e-06]
[1747742101361,0.79597,2511.7,2511.6,3.07e-06]
[1747742101563,4.00377,2511.7,2511.6,3.07e-06]
[1747742101751,5.994495,2511.7,2511.6,3.07e-06]
[1747742102364,0.79603,2511.5,2511.4,0.00401302]
[1747742102664,0.79603,2511.5,2511.4,1.34371302]
[1747742102861,2.78691,2511.5,2511.4,1.34371302]
[1747742103758,0.79603,2511.5,2511.4,3.33459302]
[1747742104160,1.99575967,2511.9,2511.4,8.33459302]
[1747742104361,0.79599,2511.7,2511.6,0.79599]
[1747742104661,0.79602,2511.6,2511.5,0.79601]
[1747742104961,0.79602,2511.6,2511.5,4.05629499]
[1747742105160,0.79602,2511.6,2511.5,9.05629499]
[1747742105361,0.79602,2511.6,2511.5,4.05629499]
[1747742105561,0.79602,2511.6,2511.5,3.26028499]
[1747742106173,1.79142206,2511.6,2511.5,4.05631499]
[1747742106875,1.79140206,2511.6,2511.5,3.26028499]
[1747742107568,1.79140206,2511.6,2511.5,4.05631499]
[1747742108369,1.79140206,2511.6,2511.5,3.26028499]
[1747742108867,0.796,2511.6,2511.5,3.26028499]
[1747742110268,2.78680001,2511.6,2511.5,1.2696]
[1747742110458,0.796,2511.6,2511.5,3.2604]
[1747742110662,2.78680001,2511.6,2511.5,1.2696]
[1747742110963,0.796,2511.6,2511.5,3.2604]
[1747742111171,2.78680001,2511.6,2511.5,1.2696]
[1747742111363,0.79603,2511.5,2511.4,0.00401302]
[1747742111570,5.34223,2511.5,2511.4,0.00401302]
[1747742111870,7.33311,2511.5,2511.4,0.00401302]
[1747742112467,7.41797477,2511.5,2511.4,0.00401302]
[1747742112970,1.99019,2511.4,2511.0,2.334]
[1747742113169,0.79616,2511.1,2511.0,2.334]
[1747742113565,0.79616,2511.1,2511.0,4.32519999]
[1747742114266,1.9906,2510.9,2510.3,0.65424536]
[1747742114471,0.79628,2510.7,2510.6,2.3216]
[1747742114771,3.2078,2511.1,2510.6,10.3786]
[1747742114969,3.2078,2511.1,2510.7,1.3378]
[1747742115265,0.79624,2510.9,2510.8,1.0011]
[1747742115571,0.79624,2510.9,2510.8,2.3294]
[1747742115764,0.79624,2510.9,2510.8,4.32075999]
[1747742116371,0.79624,2510.9,2510.8,4.63930714]
[1747742117464,0.79624,2510.9,2510.8,4.32075999]
[1747742118068,0.79624,2510.9,2510.8,2.99245999]
[1747742118275,0.79628,2510.7,2510.6,9.0408]
[1747742119070,2.08178,2510.7,2510.6,9.0408]
[1747742119278,0.79635,2510.5,2510.4,0.8703]
[1747742119674,0.79635,2510.5,2510.4,2.861975]
[1747742120171,0.79635,2510.5,2510.4,4.153375]
[1747742123673,2.07815,2510.5,2510.4,4.153375]
[1747742124773,0.79647,2510.1,2510.0,3.2078]
[1747742124975,0.79647,2510.1,2510.0,11.55067107]
[1747742125179,0.79647,2510.1,2510.0,13.54266107]
[1747742125378,0.79647,2510.1,2510.0,14.88446107]
[1747742125770,0.79647,2510.1,2510.0,15.20308921]
[1747742126683,0.79647,2510.1,2510.0,15.99959921]
[1747742127181,0.79647,2510.1,2510.0,15.20308921]
[1747742127981,0.79647,2510.1,2510.0,15.2031804]
[1747742128170,0.79647,2510.1,2510.0,5.8023804]
[1747742128376,0.79647,2510.1,2510.0,7.1115804]
[1747742128681,0.79647,2510.1,2510.0,5.1195904]
[1747742128682,2.78846,2510.1,2510.0,5.1195904]
[1747742128876,0.79647,2510.1,2510.0,5.1195904]
[1747742129081,0.79647,2510.1,2510.0,7.9080904]
[1747742129282,0.79647,2510.2,2510.1,0.79644]
[1747742129483,0.79647,2510.2,2510.1,4.38151725]
[1747742129675,0.79647,2510.2,2510.1,4.38168171]
[1747742130682,0.79647,2510.2,2510.1,2.27604171]
[1747742130979,2.12397,2510.2,2510.1,2.27604171]
[1747742131181,2.12397,2510.2,2510.1,4.41051171]
[1747742131384,2.12397,2510.2,2510.1,3.93277671]
[1747742132884,2.12397,2510.2,2510.1,4.72925671]
[1747742133085,2.12397,2510.2,2510.1,0.60286172]
[1747742133282,2.12397,2510.2,2510.1,2.59477671]
[1747742133581,2.12397,2510.2,2510.1,3.39125671]
[1747742133778,2.12397,2510.2,2510.1,4.72912007]
[1747742133970,0.79647,2510.2,2510.1,4.72912007]
[1747742134787,0.79647,2510.2,2510.1,4.72913365]
[1747742135087,2.788385,2510.2,2510.1,0.60283866]
[1747742135281,0.79647,2510.2,2510.1,2.59475365]
[1747742135481,0.79647,2510.2,2510.1,3.93265365]
[1747742135682,0.79647,2510.2,2510.1,4.72913365]
[1747742136185,0.79647,2510.2,2510.1,3.93265365]
[1747742136574,0.79647,2510.2,2510.1,3.932829]
[1747742137779,0.80240967,2510.3,2510.2,0.79645]
[1747742137988,0.80240967,2510.3,2510.2,2.43483587]
[1747742138288,0.80240967,2510.3,2510.2,3.6304436]
[1747742139185,0.80240967,2510.3,2510.2,3.94907174]
[1747742139784,0.80240967,2510.3,2510.2,4.74570704]
[1747742139982,0.80240967,2510.3,2510.2,3.94925704]
[1747742141591,0.80240967,2510.3,2510.2,3.94958471]
[1747742141787,0.00596967,2510.3,2510.2,4.74603471]
[1747742142086,0.79634,2510.6,2510.5,0.79632]
[1747742142288,0.79632,2510.7,2510.6,0.7963]
[1747742142489,1.45857886,2511.1,2511.0,0.79619]
[1747742142692,0.66236886,2511.1,2511.0,12.35011157]
[1747742142891,0.66236886,2511.1,2511.0,14.34131156]
[1747742143289,0.66236886,2511.1,2511.0,17.08110377]
[1747742143488,0.66236886,2511.1,2511.0,18.41480377]
[1747742143989,0.66236886,2511.1,2511.0,19.22360849]
[1747742144192,1.45852886,2511.1,2511.0,16.48360849]
[1747742144393,0.79616,2511.1,2511.0,16.48360849]
[1747742145091,0.79616,2511.1,2511.0,16.48354958]
[1747742145493,0.79616,2511.1,2511.0,16.32109111]
[1747742146389,0.79616,2511.1,2511.0,16.32091348]
[1747742146585,0.79616,2511.1,2511.0,16.32091415]
[1747742148296,0.79616,2511.1,2511.0,16.30573936]
[1747742148597,0.79616,2511.1,2511.0,15.97802125]
[1747742148896,0.79616,2511.1,2511.0,15.18183125]
[1747742149096,0.79616,2511.1,2511.0,15.97802125]
[1747742149297,0.79616,2511.1,2511.0,7.93202125]
[1747742149598,0.79616,2511.1,2511.0,15.97802125]
[1747742150093,0.79616,2511.1,2511.0,15.18183125]
[1747742151393,0.79616,2511.1,2511.0,13.19063126]
[1747742151697,0.79616,2511.1,2511.0,13.84797818]
[1747742151894,2.78736,2511.1,2511.0,11.85677819]
[1747742152094,4.11026,2511.1,2511.0,11.85677819]
[1747742152294,4.11026,2511.1,2511.0,3.81077819]
[1747742152491,2.11906,2511.1,2511.0,3.81077819]
[1747742153389,4.11026,2511.1,2511.0,3.49201691]
[1747742153594,4.11026,2511.1,2511.0,3.2078]
[1747742153797,4.11026,2511.1,2511.0,3.49201605]
[1747742155101,4.11026,2511.1,2511.0,3.49198565]
[1747742155900,4.11026,2511.1,2511.0,4.79238565]
[1747742156301,4.11026,2511.1,2511.0,3.49198565]
[1747742156699,4.11026,2511.1,2511.0,3.49184149]
[1747742156996,4.11026,2511.1,2511.0,3.8103642]
[1747742157601,4.11026,2511.1,2511.0,0.6025642]
[1747742157799,7.31806,2511.1,2511.0,0.6025642]
[1747742158098,7.31806,2511.1,2511.0,0.28404149]
[1747742158503,0.79622,2510.9,2510.8,0.00596967]
[1747742158706,0.79622,2510.9,2510.8,0.29029675]
[1747742158900,2.78758,2510.9,2510.8,0.29029675]
[1747742159097,4.13478,2510.9,2510.8,0.29029675]
[1747742161700,4.13478,2510.9,2510.8,0.29053914]
[1747742162608,4.13478,2510.9,2510.8,0.29058759]
[1747742163503,4.13478,2510.9,2510.8,0.29063456]
[1747742164010,0.79635,2510.5,2510.4,3.45328839]
[1747742164407,0.79635,2510.5,2510.4,5.44496339]
[1747742164713,0.79635,2510.5,2510.4,3.45328839]
[1747742164903,0.79635,2510.5,2510.4,5.44496339]
[1747742165514,0.79635,2510.5,2510.4,5.51808248]
[1747742165817,0.79635,2510.5,2510.4,6.31446248]
[1747742166012,0.79635,2510.6,2510.5,0.79631]
[1747742166313,0.79635,2510.6,2510.5,2.08481]
[1747742166515,0.79635,2510.6,2510.5,4.07640499]
[1747742167313,0.79635,2510.6,2510.5,4.64050086]
[1747742168317,0.7963,2510.7,2510.6,0.79629]
[1747742168515,1.45865886,2510.8,2510.7,0.79629]
[1747742168715,0.79629,2510.7,2510.6,4.853265]
[1747742168918,0.79629,2510.7,2510.6,3.549965]
[1747742170318,0.79629,2510.7,2510.6,4.19629059]
[1747742171717,0.79628,2510.8,2510.7,0.79623]
[1747742171918,0.79628,2510.8,2510.7,12.05103]
[1747742172218,0.79625,2510.9,2510.8,0.79621]
[1747742172415,0.79622,2510.9,2510.8,0.79621]
[1747742172616,0.79622,2510.9,2510.8,2.78756999]
[1747742172915,0.79622,2510.9,2510.8,3.43389558]
[1747742174423,0.79622,2510.9,2510.8,3.10617747]
[1747742175722,0.79622,2511.0,2510.9,0.79619]
[1747742176219,0.79619,2511.1,2511.0,0.79616]
[1747742176426,0.79619,2511.1,2511.0,1.95250613]
[1747742176622,0.79619,2511.1,2511.0,3.94370612]
[1747742177024,0.79619,2511.1,2511.0,3.94369529]
[1747742177723,0.79619,2511.1,2511.0,4.26230277]
[1747742178813,0.79619,2511.1,2511.0,3.46614277]
[1747742179011,0.79619,2511.1,2511.0,3.79404048]
[1747742179516,0.79619,2511.1,2511.0,4.59023048]
[1747742180326,0.79619,2511.1,2511.0,4.59031095]
[1747742180928,0.79619,2511.1,2511.0,4.59030574]
[1747742181228,0.79619,2511.1,2511.0,1.80291575]
[1747742182030,0.79619,2511.1,2511.0,1.80293168]
[1747742183533,2.78739,2511.1,2511.0,8.98823168]
[1747742183724,2.78739,2511.1,2511.0,8.98820634]
[1747742184728,2.78739,2511.1,2511.0,0.95320634]
[1747742185528,2.78739,2511.1,2511.0,0.95317859]
[1747742186628,2.78739,2511.1,2511.0,0.87117109]
[1747742187129,2.78739,2511.1,2511.0,0.8711782]
[1747742188230,3.44975886,2511.1,2511.0,0.8711782]
[1747742188430,3.44975886,2511.1,2511.0,2.1402782]
[1747742188724,3.44975886,2511.1,2511.0,1.83359769]
[1747742188920,3.44975886,2511.1,2511.0,2.14026976]
[1747742189123,3.44975886,2511.1,2511.0,1.89437955]
[1747742190523,3.44975886,2511.1,2511.0,1.89439263]
[1747742191730,3.44975886,2511.1,2511.0,2.69058263]
[1747742192230,3.44975886,2511.1,2511.0,2.69059055]
[1747742192531,3.44975886,2511.1,2511.0,3.01848826]
[1747742193431,3.44975886,2511.1,2511.0,2.22229826]
[1747742194031,3.44975886,2511.1,2511.0,2.22233482]
[1747742195635,3.44975886,2511.1,2511.0,2.22249826]
[1747742196039,3.44975886,2511.1,2511.0,0.95339826]
[1747742197533,3.44975886,2511.1,2511.0,0.95364538]
[1747742198735,3.44975886,2511.1,2511.0,0.62574767]
[1747742199236,3.44975886,2511.1,2511.0,0.62586256]
[1747742200738,3.44975886,2511.1,2511.0,1.42213717]
[1747742201433,2.65356886,2511.1,2511.0,3.24681375]
[1747742201636,0.66236886,2511.1,2511.0,3.24681375]
[1747742202132,1.00137173,2511.3,2511.2,0.79613]
[1747742202330,1.00137173,2511.3,2511.2,1.10346969]
[1747742202529,1.00137173,2511.3,2511.2,3.09450969]
[1747742202731,1.00137173,2511.3,2511.2,3.87430969]
[1747742202931,1.79750173,2511.3,2511.2,3.87430969]
[1747742203333,1.79750173,2511.3,2511.2,4.52123881]
[1747742203938,1.79750173,2511.3,2511.2,5.87183881]
[1747742204134,0.80209967,2511.3,2511.2,5.87188238]
[1747742206341,0.80209967,2511.3,2511.2,5.54356074]
[1747742207444,0.80209967,2511.3,2511.2,4.74741925]
[1747742209146,0.80209967,2511.3,2511.2,4.74743651]
[1747742209941,0.80209967,2511.3,2511.2,5.07587186]
[1747742210142,0.80209967,2511.3,2511.2,5.87200186]
[1747742210841,0.80209967,2511.3,2511.2,5.87198224]
[1747742211036,0.00596967,2511.3,2511.2,9.07978224]
[1747742211350,1.79148206,2511.4,2511.3,0.7961]
[1747742211647,1.53270924,2511.4,2511.3,10.48536941]
[1747742211945,1.53270924,2511.4,2511.3,13.27022941]
[1747742212135,0.73663924,2511.4,2511.3,13.27022941]
[1747742212444,0.80198967,2511.6,2511.5,0.79603]
[1747742212743,0.80198967,2511.6,2511.5,1.10307356]
[1747742212942,0.80198967,2511.6,2511.5,3.09387356]
[1747742214339,0.80198967,2511.6,2511.5,3.09371796]
[1747742214646,0.80198967,2511.6,2511.5,3.90427189]
[1747742215648,0.80198967,2511.6,2511.5,1.91347189]
[1747742215947,2.79278968,2511.6,2511.5,9.1377974]
[1747742216349,4.12878968,2511.6,2511.5,8.97370296]
[1747742217443,4.12878968,2511.6,2511.5,0.95270296]
[1747742217641,4.91988968,2511.6,2511.5,0.95297164]
[1747742217946,4.91988968,2511.6,2511.5,0.62511963]
[1747742219338,4.91988968,2511.6,2511.5,0.62522824]
[1747742221245,9.91988968,2511.6,2511.5,0.62522824]
[1747742221441,0.7961,2511.3,2511.2,0.32785201]
[1747742221949,2.78714,2511.3,2511.2,1.10085201]
[1747742222447,0.7961,2511.3,2511.2,1.10085201]
[1747742223350,0.7961,2511.3,2511.2,0.773]
[1747742224954,2.78714,2511.3,2511.2,0.773]
[1747742225453,2.78714,2511.3,2511.2,1.56913]
[1747742225650,2.78714,2511.3,2511.2,2.86783]
[1747742225844,1.2697,2511.4,2511.3,0.7961]
[1747742226052,4.00386,2511.5,2511.4,0.79607]
[1747742226448,5.99474,2511.5,2511.4,2.09477]
[1747742226654,4.00386,2511.5,2511.4,2.09477]
[1747742227855,4.00386,2511.5,2511.4,2.42262201]